[Event "German Bundesliga 2024-25"]
[Site "Germany"]
[Date "2024.11.30"]
[Round "3.13"]
[White "Ikonnikov, Vyacheslav"]
[Black "Shirov, Alexei"]
[Result "0-1"]
[Annotator "ChessBase"]
[ECO "D43"]
[WhiteElo "2465"]
[BlackElo "2646"]
[PlyCount "87"]
[EventDate "2024.09.27"]
[EventType "team-tourn"]
[EventCountry "GER"]
[SourceTitle "playchess.com"]
[Source "ChessBase"]
[SourceQuality "1"]
[WhiteTeam "Bad Mergentheim"]
[BlackTeam "Baden-Baden"]
[TimeControl "40/5400+30:1800+30"]

1. d4 {[%emt 0:00:04]} d5 {[%emt 0:00:05]} 2. Nf3 {[%emt 0:00:10]} Nf6 {[%emt 0:00:07]} 3. c4 {[%emt 0:00:09]} c6 {[%emt 0:00:04]} 4. Nc3 {[%emt 0:00:24]} e6 {[%emt 0:00:05]} 5. Qb3 {[%emt 0:00:40]} Be7 {[%emt 0:00:57]} 6. g3 {[%emt 0:02:05]} dxc4 {[%emt 0:17:03]} 7. Qxc4 {[%emt 0:00:24]} b5 {[%emt 0:00:04]} 8. Qb3 {[%emt 0:00:15]} b4 {[%emt 0:18:09]} 9. Na4 {[%emt 0:02:18]} Nbd7 {[%emt 0:00:04]} 10. Bg2 {[%emt 0:16:01]} Ba6 {[%emt 0:02:05]} 11. Bd2 {[%emt 0:26:05]} Qa5 {[%emt 0:12:02]} 12. a3 {[%emt 0:03:28]} Qb5 {[%emt 0:00:35]} 13. Qd1 {[%emt 0:00:05]} bxa3 {[%emt 0:05:41]} 14. bxa3 {[%emt 0:00:45]} Rb8 {[%emt 0:00:50]} 15. Nc3 {[%emt 0:03:28]} Qb3 {[%emt 0:10:35]} 16. O-O {[%emt 0:19:26]} O-O {[%emt 0:00:51]} 17. Qxb3 {[%emt 0:11:37]} Rxb3 {[%emt 0:00:07]} 18. Rfb1 {[%emt 0:00:07]} Rfb8 {[%emt 0:00:25]} 19. Bf1 {[%emt 0:00:07]} c5 {[%emt 0:08:44]} 20. Rxb3 {[%emt 0:04:43]} Rxb3 {[%emt 0:00:05]} 21. a4 {[%emt 0:00:03]} Bb7 {[%emt 0:01:21]} 22. dxc5 {[%emt 0:00:24]} Bxc5 {[%emt 0:00:07]} 23. Rb1 {[%emt 0:01:00]} Rxb1 {[%emt 0:01:43]} 24. Nxb1 {[%emt 0:00:04]} Ne4 {[%emt 0:00:06]} 25. Be1 {[%emt 0:01:11]} Kf8 {[%emt 0:05:56]} 26. Nfd2 {[%emt 0:04:27]} Bb4 {[%emt 0:00:29]} 27. Nxe4 {[%emt 0:00:23]} Bxe1 {[%emt 0:00:09]} 28. Nec3 {[%emt 0:00:38]} Ke7 {[%emt 0:01:58]} 29. Bg2 {[%emt 0:00:32]} Bxg2 {[%emt 0:04:54]} 30. Kxg2 {[%emt 0:00:05]} a5 {[%emt 0:02:18]} 31. Kf3 {[%emt 0:02:09]} Kd6 {[%emt 0:00:38]} 32. Ke3 {[%emt 0:00:34]} Kc5 {[%emt 0:02:11]} 33. Ne4+ {[%emt 0:02:11]} Kb4 {[%emt 0:00:10]} 34. Ng5 {[%emt 0:00:16]} Kxa4 {[%emt 0:02:00]} 35. Nxf7 {[%emt 0:00:06]} Kb3 {[%emt 0:00:07]} 36. Ng5 {[%emt 0:00:39]} Kb2 {[%emt 0:01:31]} 37. Nd2 {[%emt 0:00:19]} Bxd2+ {[%emt 0:00:18]} 38. Kxd2 {[%emt 0:00:05]} a4 {[%emt 0:00:08]} 39. Nxe6 {[%emt 0:00:37]} a3 {[%emt 0:00:06]} 40. Nd4 {[%emt 0:00:13]} Nc5 {[%emt 0:00:15]} 41. Kd1 {[%emt 0:31:36]} Ne4 {[%emt 0:32:11]} 42. f3 {[%emt 0:00:00]} a2 {[%emt 0:00:00]} 43. Nc2 {[%emt 0:00:00]} Nc3+ {[%emt 0:00:00]} 44. Ke1 {[%emt 0:01:51]} 0-1

[Event "German Bundesliga 2024-25"]
[Site "Germany"]
[Date "2024.11.30"]
[Round "3.13"]
[White "Buckels, Valentin"]
[Black "Blohberger, Felix"]
[Result "1/2-1/2"]
[Annotator "TA"]
[ECO "A46"]
[WhiteElo "2448"]
[BlackElo "2536"]
[PlyCount "145"]
[EventDate "2024.09.27"]
[EventType "team-tourn"]
[EventCountry "GER"]
[SourceTitle "playchess.com"]
[Source "ChessBase"]
[SourceQuality "1"]
[WhiteTeam "Muelheim Nord"]
[BlackTeam "Bayern Muenchen"]
[TimeControl "40/5400+30:1800+30"]

{[%evp 9,145,-12,-14,-8,8,9,8,4,19,3,3,0,5,16,23,8,7,16,27,12,19,0,0,2,0,0,0,0,0,0,0,0,0,0,0,0,0,0,36,36,41,33,39,44,54,53,53,53,53,53,53,53,54,54,56,61,86,86,102,86,86,86,93,93,102,27,61,61,102,61,61,61,70,61,61,61,61,0,67,61,61,0,24,31,31,31,61,0,61,0,68,25,52,0,43,0,67,48,48,0,0,0,0,0,0,0,0,0,0,0,0,0,0,0,0,0,0,0,0,0,0,0,80,0,80,8,80,80,80,80,80,0,0,0,80,0,0,0]} 1. d4 {[%emt 0:00:04]} Nf6 {[%emt 0:00:05]} 2. Nf3 {[%emt 0:00:22]} e6 {[%emt 0:00:13]} 3. Bf4 {[%emt 0:00:30]} Be7 {[%emt 0:00:07]} 4. Nbd2 {[%emt 0:10:56]} Nh5 {[%emt 0:01:42]} 5. e3 {[%emt 0:00:46]} Nxf4 {[%emt 0:01:37]} 6. exf4 {[%emt 0:00:06]} c5 {[%emt 0:00:14]} 7. dxc5 {[%emt 0:03:58]} Qc7 {[%emt 0:05:48]} 8. g3 {[%emt 0:11:07]} Na6 {[%emt 0:08:55]} 9. Bg2 {[%emt 0:03:52]} Nxc5 {[%emt 0:00:28]} 10. O-O {[%emt 0:04:33]} O-O {[%emt 0:08:07]} 11. c4 {[%emt 0:17:29]} Bf6 {[%emt 0:13:02]} 12. Qc2 {[%emt 0:04:41]} h6 {[%emt 0:11:02]} 13. Rad1 {[%emt 0:02:11]} Qb6 {[%emt 0:05:06]} 14. b3 {[%emt 0:02:57]} a5 {[%emt 0:00:52]} 15. Ne4 {[%emt 0:07:09]} Nxe4 {[%emt 0:00:45]} 16. Qxe4 {[%emt 0:00:01]} a4 {[%emt 0:00:50]} 17. Rd3 {[%emt 0:05:33]} axb3 {[%emt 0:03:44]} 18. axb3 {[%emt 0:00:09]} Ra3 {[%emt 0:03:36]} 19. Qe3 {[%emt 0:03:49]} Qxe3 {[%emt 0:04:21]} 20. fxe3 {[%emt 0:01:03]} b6 {[%emt 0:01:32]} 21. Rb1 {[%emt 0:03:04]} Rd8 {[%emt 0:05:49]} 22. Nd4 {[%emt 0:04:38]} Ba6 {[%emt 0:05:03]} 23. Rdd1 {[%emt 0:00:36]} Be7 {[%emt 0:05:46] Black is weak on the light squares} 24. Ra1 {[%emt 0:02:26] [#] And now Rxa3 would win.} Ra5 {[%emt 0:00:44]} 25. Nc2 {[%emt 0:01:51]} d5 {[%emt 0:11:20]} 26. cxd5 {[%emt 0:04:17]} exd5 {[%emt 0:00:06]} 27. Rxa5 {[%emt 0:00:32]} bxa5 {[%emt 0:00:06]} 28. Rxd5 {[%emt 0:00:23]} Rxd5 {[%emt 0:00:21]} 29. Bxd5 $14 {[%emt 0:00:02][%mdl 4096] Endgame. KBB-KBN} Bc5 {[%emt 0:00:44]} 30. Kf2 {[%emt 0:01:22]} Kf8 {[%emt 0:00:17]} 31. Kf3 {[%emt 0:01:10]} Ke7 {[%emt 0:01:07]} 32. Nd4 {[%emt 0:02:53]} Bxd4 {[%emt 0:00:41]} 33. exd4 {[%emt 0:00:02] KB-KB} f6 {[%emt 0:00:33]} 34. h4 {[%emt 0:01:04]} Kd6 {[%emt 0:00:23]} 35. Be4 {[%emt 0:00:46]} Bc8 {[%emt 0:00:53]} 36. f5 {[%emt 0:00:57]} Bd7 {[%emt 0:00:24]} 37. Bc2 {[%emt 0:01:02]} (37. Ke3 $16) 37... Bc6+ {[%emt 0:01:30]} 38. Ke3 {[%emt 0:00:27]} Bd7 {[%emt 0:00:25]} 39. Kd2 {[%emt 0:00:29]} Bc6 {[%emt 0:00:57]} 40. Kc3 {[%emt 0:00:28]} Bd5 {[%emt 0:00:42]} 41. Bd3 {[%emt 0:08:21]} Bb7 {[%emt 0:02:23]} 42. Bc4 {[%emt 0:02:19]} Be4 {[%emt 0:00:49]} 43. Bd3 {[%emt 0:03:00]} Bb7 {[%emt 0:00:21]} 44. Kd2 {[%emt 0:08:05]} Bd5 {[%emt 0:00:19]} 45. Kc2 {[%emt 0:01:49]} (45. Bc4 $1 $14 Bf3 46. Be2) 45... Bc6 {[%emt 0:01:57]} 46. Kb2 {[%emt 0:00:43]} Kd5 {[%emt 0:02:57]} 47. Kc3 {[%emt 0:00:35]} Kd6 {[%emt 0:00:17]} 48. Kd2 {[%emt 0:02:25]} Bd5 $1 {[%emt 0:00:32]} 49. Bc2 {[%emt 0:00:04]} (49. Bc4 $1 $14 Be4 50. g4) 49... Bf7 {[%emt 0:01:25]} (49... Bc6 $11) 50. Ke3 {[%emt 0:00:54]} Bd5 {[%emt 0:00:36]} 51. Kf4 {[%emt 0:00:24]} (51. Kd3 $14) 51... Bf7 {[%emt 0:00:55]} 52. g4 {[%emt 0:03:06]} Be8 {[%emt 0:01:15]} (52... Kc6 $11) 53. Bd1 {[%emt 0:00:52]} Bf7 {[%emt 0:07:08]} 54. g5 {[%emt 0:01:50]} (54. Ke3 $14) 54... hxg5+ $11 {[%emt 0:00:21]} 55. hxg5 {[%emt 0:00:06]} Bd5 {[%emt 0:01:41]} 56. g6 {[%emt 0:01:46]} Bg8 {[%emt 0:00:38]} 57. Ke4 {[%emt 0:00:19]} Bd5+ {[%emt 0:00:09]} 58. Kd3 {[%emt 0:00:12]} Bg8 {[%emt 0:01:00]} 59. Kc3 {[%emt 0:00:49]} (59. Kc2 $5 Bd5 $8 60. Kd3 $11) 59... Bd5 {[%emt 0:00:06] Dodges Bf3} 60. Be2 {[%emt 0:00:25]} Be4 {[%emt 0:01:03]} 61. Bd3 {[%emt 0:00:10]} Bb7 {[%emt 0:00:30]} 62. Kd2 {[%emt 0:00:21]} Bd5 {[%emt 0:00:32]} 63. Bc4 {[%emt 0:00:31] [#] Threatens to win with Bxd5.} Be4 {[%emt 0:01:47]} 64. Be6 {[%emt 0:00:13]} Bc6 {[%emt 0:00:37]} 65. Kd3 {[%emt 0:01:02]} Bb7 {[%emt 0:01:32]} (65... Bf3 $11 {remains equal.}) 66. Kc4 {[%emt 0:00:20]} (66. b4 $16 axb4 67. Kc4) 66... Ba6+ $1 {[%emt 0:00:06]} 67. Kc3 {[%emt 0:00:03]} Bb7 {[%emt 0:00:55]} (67... Bb5 $1 $11) 68. b4 $16 {[%emt 0:01:40]} axb4+ {[%emt 0:00:08]} 69. Kxb4 {[%emt 0:00:05]} Bc6 {[%emt 0:00:38]} 70. Kc4 {[%emt 0:00:39]} ({White should play} 70. Kc3 $16) 70... Be8 $1 $11 {[%emt 0:00:45]} 71. Bc8 {[%emt 0:00:22]} Bc6 {[%emt 0:00:44]} (71... Kc7 $1 $11 {keeps the balance.} 72. Kd5 Kxc8) 72. Be6 {[%emt 0:00:09]} ({Better is} 72. Kc3 $16) 72... Be8 $1 {[%emt 0:00:06]} 73. Bc8 {[%emt 0:00:13] Weighted Error Value: White=0.14 (very precise) /Black=0.11 (very precise) .  Mistake:       	White=8     	Black=5      Inaccurate:     	White=4     	Black=6      OK:         	White=24    	Black=25     Best:        	White=1     	Black=1      Strong:       	---       	Black=4} 1/2-1/2

[Event "German Bundesliga 2024-25"]
[Site "Germany"]
[Date "2024.11.30"]
[Round "3.14"]
[White "Wagner, Dennis"]
[Black "Sawatzki, Frank"]
[Result "1-0"]
[Annotator "ChessBase"]
[ECO "D11"]
[WhiteElo "2616"]
[BlackElo "2346"]
[PlyCount "59"]
[EventDate "2024.09.27"]
[EventType "team-tourn"]
[EventCountry "GER"]
[SourceTitle "playchess.com"]
[Source "ChessBase"]
[SourceQuality "1"]
[WhiteTeam "Viernheim"]
[BlackTeam "St. Pauli"]
[TimeControl "40/5400+30:1800+30"]

1. d4 {[%emt 0:00:05]} d5 {[%emt 0:00:25]} 2. c4 {[%emt 0:00:07]} c6 {[%emt 0:00:04]} 3. Nf3 {[%emt 0:00:07]} Nf6 {[%emt 0:00:08]} 4. e3 {[%emt 0:00:30]} Bg4 {[%emt 0:00:47]} 5. Qb3 {[%emt 0:06:50]} Qb6 {[%emt 0:07:17]} 6. Ne5 {[%emt 0:00:13]} Bf5 {[%emt 0:06:50]} 7. Nc3 {[%emt 0:00:21]} e6 {[%emt 0:02:01]} 8. c5 {[%emt 0:00:22]} Qc7 {[%emt 0:02:54]} 9. e4 {[%emt 0:00:46]} Nxe4 {[%emt 0:27:17]} 10. Nxe4 {[%emt 0:00:42]} Bxe4 {[%emt 0:04:46]} 11. Bf4 {[%emt 0:02:12]} g5 {[%emt 0:07:41]} 12. Bg3 {[%emt 0:02:37]} Qa5+ {[%emt 0:14:32]} 13. Kd1 {[%emt 0:03:26]} Bg7 {[%emt 0:01:24]} 14. f3 {[%emt 0:32:53]} Bf5 {[%emt 0:01:48]} 15. Qxb7 {[%emt 0:00:55]} Qa4+ {[%emt 0:00:42]} 16. Ke1 {[%emt 0:00:43]} O-O {[%emt 0:01:21]} 17. Rd1 {[%emt 0:08:30]} f6 {[%emt 0:01:01]} 18. Ng4 {[%emt 0:16:04]} e5 {[%emt 0:00:21]} 19. Qxa8 {[%emt 0:05:08]} Qa5+ {[%emt 0:10:41]} 20. Kf2 {[%emt 0:05:46]} Bxg4 {[%emt 0:04:26]} 21. fxg4 {[%emt 0:01:49]} Qc7 {[%emt 0:00:15]} 22. Bb5 {[%emt 0:01:00]} Qd7 {[%emt 0:01:52]} 23. Ba4 {[%emt 0:07:11]} f5 {[%emt 0:00:15]} 24. gxf5 {[%emt 0:00:58]} Qxf5+ {[%emt 0:01:26]} 25. Kg1 {[%emt 0:00:01]} exd4 {[%emt 0:01:23]} 26. Bxc6 {[%emt 0:02:50]} h5 {[%emt 0:00:38]} 27. Bxd5+ {[%emt 0:00:08]} Kh8 {[%emt 0:00:09]} 28. Be4 {[%emt 0:01:01]} Qf6 {[%emt 0:01:21]} 29. h4 {[%emt 0:00:39]} d3 {[%emt 0:00:08]} 30. Qd5 {[%emt 0:00:20]} 1-0

[Event "German Bundesliga 2024-25"]
[Site "Germany"]
[Date "2024.11.30"]
[Round "3.14"]
[White "Movsesian, Sergei"]
[Black "Neuman, Petr"]
[Result "1/2-1/2"]
[Annotator "ChessBase"]
[ECO "B23"]
[WhiteElo "2609"]
[BlackElo "2426"]
[PlyCount "95"]
[EventDate "2024.09.27"]
[EventType "team-tourn"]
[EventCountry "GER"]
[SourceTitle "playchess.com"]
[Source "ChessBase"]
[SourceQuality "1"]
[WhiteTeam "Baden-Baden"]
[BlackTeam "Bad Mergentheim"]
[TimeControl "40/5400+30:1800+30"]

1. e4 {[%emt 0:00:04]} c5 {[%emt 0:00:14]} 2. Nc3 {[%emt 0:00:11]} d6 {[%emt 0:00:15]} 3. Nge2 {[%emt 0:00:32]} e5 {[%emt 0:02:34]} 4. g3 {[%emt 0:03:29]} g6 {[%emt 0:12:42]} 5. Nd5 {[%emt 0:12:12]} Bg7 {[%emt 0:16:53]} 6. d3 {[%emt 0:05:14]} Nf6 {[%emt 0:10:01]} 7. Nxf6+ {[%emt 0:02:54]} Bxf6 {[%emt 0:00:26]} 8. Nc3 {[%emt 0:01:20]} Be6 {[%emt 0:01:06]} 9. Bg2 {[%emt 0:05:10]} h5 {[%emt 0:09:25]} 10. O-O {[%emt 0:11:01]} Nc6 {[%emt 0:09:08]} 11. f4 {[%emt 0:02:09]} Bg4 {[%emt 0:02:54]} 12. Qd2 {[%emt 0:05:39]} exf4 {[%emt 0:11:01]} 13. Qxf4 {[%emt 0:07:40]} Bd4+ {[%emt 0:00:16]} 14. Be3 {[%emt 0:00:34]} Qd7 {[%emt 0:01:37]} 15. Bxd4 {[%emt 0:06:06]} Nxd4 {[%emt 0:01:43]} 16. Qf6 {[%emt 0:00:08]} O-O {[%emt 0:00:53]} 17. Qg5 {[%emt 0:12:58]} Be6 {[%emt 0:04:55]} 18. Rf2 {[%emt 0:03:55]} Kg7 {[%emt 0:00:37]} 19. e5 {[%emt 0:04:25]} Qd8 {[%emt 0:02:19]} 20. Qf4 {[%emt 0:00:20]} d5 {[%emt 0:01:02]} 21. Raf1 {[%emt 0:00:35]} Nf5 {[%emt 0:03:05]} 22. Nd1 {[%emt 0:01:49]} Qb6 {[%emt 0:01:34]} 23. Ne3 {[%emt 0:02:55]} Nxe3 {[%emt 0:01:23]} 24. Qxe3 {[%emt 0:00:04]} Qxb2 {[%emt 0:02:14]} 25. c4 {[%emt 0:01:27]} Qd4 {[%emt 0:00:03]} 26. Qxd4 {[%emt 0:00:21]} cxd4 {[%emt 0:00:03]} 27. cxd5 {[%emt 0:00:34]} Bf5 {[%emt 0:00:04]} 28. Rf4 {[%emt 0:01:43]} Rfe8 {[%emt 0:01:53]} 29. Re1 {[%emt 0:00:21]} Bxd3 {[%emt 0:00:38]} 30. Rxd4 {[%emt 0:00:46]} Bf5 {[%emt 0:00:03]} 31. d6 {[%emt 0:02:56]} Rad8 {[%emt 0:00:17]} 32. Bxb7 {[%emt 0:02:12]} f6 {[%emt 0:00:13]} 33. exf6+ {[%emt 0:01:26]} Kxf6 {[%emt 0:00:04]} 34. Rxe8 {[%emt 0:01:45]} Rxe8 {[%emt 0:00:01]} 35. Ra4 {[%emt 0:00:37]} Re1+ {[%emt 0:03:46]} 36. Kf2 {[%emt 0:00:09]} Rd1 {[%emt 0:00:03]} 37. Rxa7 {[%emt 0:00:16]} Ke5 {[%emt 0:00:54]} 38. Ra6 {[%emt 0:01:49]} Rd2+ {[%emt 0:00:19]} 39. Kg1 {[%emt 0:00:34]} Rd1+ {[%emt 0:00:21]} 40. Kf2 {[%emt 0:00:04]} Rd2+ {[%emt 0:00:06]} 41. Ke3 {[%emt 0:05:10]} Rxh2 {[%emt 0:01:27]} 42. Be4 {[%emt 0:07:31]} Be6 {[%emt 0:02:55]} 43. Bxg6 {[%emt 0:01:54]} h4 {[%emt 0:00:27]} 44. Be8 {[%emt 0:02:14]} Rh3 {[%emt 0:05:11]} 45. Bb5 {[%emt 0:05:46]} Rxg3+ {[%emt 0:00:46]} 46. Kf2 {[%emt 0:00:06]} Rg7 {[%emt 0:00:40]} 47. d7 {[%emt 0:00:55]} Bxd7 {[%emt 0:00:51]} 48. Bxd7 {[%emt 0:00:05]} 1/2-1/2

[Event "German Bundesliga 2024-25"]
[Site "Germany"]
[Date "2024.11.30"]
[Round "3.14"]
[White "Lokander, Martin"]
[Black "Zelbel, Patrick"]
[Result "1/2-1/2"]
[Annotator "TA"]
[ECO "E92"]
[WhiteElo "2467"]
[BlackElo "2493"]
[PlyCount "107"]
[EventDate "2024.09.27"]
[EventType "team-tourn"]
[EventCountry "GER"]
[SourceTitle "playchess.com"]
[Source "ChessBase"]
[SourceQuality "1"]
[WhiteTeam "Bayern Muenchen"]
[BlackTeam "Muelheim Nord"]
[TimeControl "40/5400+30:1800+30"]

{[%evp 39,107,157,139,0,0,0,0,0,0,0,0,0,0,0,0,0,0,0,0,0,-16,0,0,0,0,0,0,0,0,0,0,0,0,0,242,0,0,0,90,96,102,96,86,107,89,89,81,89,89,89,89,89,307,89,363,356,355,201,225,0,0,0,0,0,0,0,0,0,0,0]} 1. d4 {[%emt 3:02:36]} Nf6 {[%emt 0:00:04]} 2. c4 {[%emt 0:00:00]} g6 {[%emt 0:00:50]} 3. Nc3 {[%emt 0:00:00]} Bg7 {[%emt 0:00:03]} 4. e4 {[%emt 0:00:00]} d6 {[%emt 0:00:06]} 5. Nf3 {[%emt 0:00:00]} O-O {[%emt 0:00:28]} 6. Be2 {[%emt 0:00:00]} e5 {[%emt 0:00:21]} 7. Be3 {[%emt 0:00:00]} exd4 {[%emt 0:01:28]} 8. Nxd4 {[%emt 0:00:00]} Re8 {[%emt 0:00:05]} 9. f3 {[%emt 0:00:00]} c6 {[%emt 0:00:09]} 10. Qd2 {[%emt 0:00:00]} d5 {[%emt 0:00:28]} 11. exd5 {[%emt 0:00:00]} cxd5 {[%emt 0:00:07]} 12. O-O-O {[%emt 0:00:00] E92: King's Indian: Classical: 6 Be2 e5: 7 dxe5, 7 Be3 and Petrosian System without 7...Nbd7.} Nc6 {[%emt 0:02:55]} 13. g4 {[%emt 0:00:00]} Bd7 $146 {[%emt 0:29:55]} ({Predecessor:} 13... Nxd4 14. Bxd4 dxc4 15. h4 Be6 16. h5 Qe7 17. h6 Bh8 18. Rhe1 Rad8 19. Bxc4 Qc7 20. Bxe6 Rxe6 21. Rxe6 fxe6 {½-½ Lysyj,I (2589)-Saric,I (2689) Chessable Masters Play In rapid 2024 (7)}) 14. Nc2 {[%emt 0:00:00]} Qa5 {[%emt 0:09:51]} 15. cxd5 {[%emt 0:08:55]} Nb4 {[%emt 0:12:13]} 16. Nxb4 {[%emt 0:00:00]} Qxb4 {[%emt 0:11:42]} 17. Bd4 {[%emt 0:00:00]} Rac8 {[%emt 0:00:00]} 18. Kb1 {[%emt 0:00:00]} Qa5 {[%emt 0:04:51]} 19. Qf4 {[%emt 0:00:00]} Rxe2 {[%emt 0:11:57]} 20. Nxe2 {[%emt 0:00:00]} (20. Bxf6 $2 Rxb2+ (20... Rxc3 21. Bxg7 Qc7 22. Qxc7 $16) 21. Kxb2 Qb6+ 22. Kc2 Bxf6 23. Rd3 $19) 20... Nxd5 {[%emt 0:00:45]} 21. Qd2 {[%emt 0:00:00]} (21. Qd6 $16 Ba4 22. Bxg7 Bc2+ 23. Ka1 Bxd1 24. Rxd1) 21... Nb4 $11 {[%emt 0:00:05]} 22. a3 {[%emt 0:00:00]} Bf5+ {[%emt 0:01:41]} 23. gxf5 {[%emt 0:00:00]} Qxf5+ {[%emt 0:00:01]} 24. Ka1 {[%emt 0:00:00]} Nc2+ {[%emt 0:00:06]} 25. Ka2 {[%emt 0:00:00]} Qe6+ $1 {[%emt 0:04:16]} 26. Kb1 {[%emt 0:00:00]} Qb3 {[%emt 0:00:06]} 27. Qa5 {[%emt 0:00:00]} (27. Bxa7 $2 Qxb2#) 27... Bf8 $1 {[%emt 0:02:53]} 28. Rc1 {[%emt 0:00:00]} Rc6 {[%emt 0:01:20]} 29. Bc3 {[%emt 0:00:00]} (29. Bxa7 $2 Nxa3+ 30. Ka1 Nc4 (30... Qxf3 $2 31. Nd4 $18) 31. Rxc4 (31. Qa2 $2 Ra6 32. Kb1 Nd2+ 33. Ka1 Rxa2#) 31... Qxc4 $19) 29... Nxa3+ {[%emt 0:02:03]} 30. Qxa3 {[%emt 0:00:00]} (30. Ka1 $2 Nc4 31. Qxa7 Qb5 $19 (31... Ra6+ $2 32. Qxa6 bxa6 33. Rhd1 $19)) 30... Bxa3 {[%emt 0:00:05]} 31. Nd4 $1 {[%emt 0:00:00]} Qb6 {[%emt 0:01:15]} 32. Nxc6 {[%emt 0:00:00]} bxc6 {[%emt 0:00:07]} 33. Rhe1 $1 {[%emt 0:00:00]} Kf8 {[%emt 0:01:32]} 34. Re4 $1 {[%emt 0:00:00]} f5 {[%emt 0:01:24]} 35. Re6 $1 {[%emt 0:00:00]} Bc5 {[%emt 0:00:50]} 36. Rd1 {[%emt 0:00:00]} Qb3 $2 {[%emt 0:01:52]} (36... Qc7 $11 {and Black has nothing to worry.}) 37. Rd8+ $2 {[%emt 0:00:00]} (37. Ree1 $1 $18 {White wants to mate with Rd8+.} Qb8 38. Rd7) 37... Kf7 $11 {[%emt 0:00:01]} 38. Rxc6 {[%emt 0:00:00]} Be7 {[%emt 0:00:37]} (38... Bb6 $11 {remains equal.} 39. Rd7+ Ke8) 39. Rd7 $16 {[%emt 0:00:00]} Ke8 {[%emt 0:00:52]} 40. Rcc7 {[%emt 0:00:00]} (40. Rxa7 $2 Qd1+ 41. Ka2 Qd5+ (41... Qxf3 $2 42. Rc8+ Kf7 43. Rcc7 $18) 42. Kb1 Qxc6 $19) 40... Bd8 {[%emt 0:00:30]} 41. Rxa7 {[%emt 0:00:00]} Bb6 {[%emt 0:07:58]} 42. Rab7 {[%emt 0:00:00]} Qb5 {[%emt 0:00:23]} 43. Rd6 {[%emt 0:00:00]} ({Don't play} 43. Rxh7 Qd3+ 44. Ka2 Qc4+ 45. Kb1 Qd3+ 46. Ka2 Qc4+ 47. Kb1 Qd3+ $11) 43... Qf1+ {[%emt 0:01:18]} 44. Kc2 {[%emt 0:00:00]} Qe2+ {[%emt 0:02:40]} 45. Rd2 $1 {[%emt 0:00:00]} Qa6 $2 {[%emt 0:00:21]} (45... Qb5 $16 {was necessary.}) 46. Rxh7 $2 {[%emt 0:00:00]} (46. Rb8+ $1 $18 {and the rest is easy.} Kf7 47. Rd6 Qe2+ 48. Kb3) 46... Be3 $2 {[%emt 0:01:57][%mdl 8192]} (46... Qf1 $16) 47. Rd5 $1 $18 {[%emt 0:00:00]} Qe2+ {[%emt 0:02:22] [#]} 48. Kb3 $1 {[%emt 0:00:00]} Qxf3 {[%emt 0:00:16] [#]} 49. Ra5 $2 {[%emt 0:00:00]} ({Worse is} 49. Re5+ Kd8 $11) (49. Rd6 $1 $18 {[%cal Rd6e6] Threatens to win with Re6+.} Bg5 50. Re6+ (50. Rxg6 Qd1+ 51. Ka3 Qa1+ 52. Kb3 Qd1+ 53. Kc4 Qe2+ 54. Kb3 Qd1+ $11) 50... Kd8 51. Ka4 (51. Rxg6 Qd5+ 52. Kc2 Qe4+ 53. Kb3 Qd5+ 54. Ka4 Be7 $11) 51... Qf4+ 52. Ka3) 49... Bd4 $11 {[%emt 0:00:15]} 50. Rb5 {[%emt 0:00:00]} Qd1+ {[%emt 0:00:57]} 51. Ka3 {[%emt 0:00:00]} Qa1+ {[%emt 0:00:22]} 52. Kb3 {[%emt 0:00:00]} Qd1+ {[%emt 0:00:04]} 53. Ka3 {[%emt 0:00:00]} Qa1+ {[%emt 0:00:05]} 54. Kb3 {[%emt 0:00:00]} 1/2-1/2

[Event "German Bundesliga 2024-25"]
[Site "Germany"]
[Date "2024.11.30"]
[Round "3.15"]
[White "Vlasak, Lukas"]
[Black "Hagner, Bennet"]
[Result "0-1"]
[Annotator "RC"]
[ECO "A50"]
[WhiteElo "2458"]
[BlackElo "2352"]
[PlyCount "100"]
[EventDate "2024.09.27"]
[EventType "team-tourn"]
[EventCountry "GER"]
[SourceTitle "playchess.com"]
[Source "ChessBase"]
[SourceQuality "1"]
[WhiteTeam "Bad Mergentheim"]
[BlackTeam "Baden-Baden"]
[TimeControl "40/5400+30:1800+30"]

1. c4 {[%emt 0:00:12]} Nf6 {[%emt 0:00:27]} 2. Nf3 {[%emt 0:00:28]} b6 {[%emt 0:01:43]} 3. g3 {[%emt 0:00:18]} Bb7 {[%emt 0:00:09]} 4. Bg2 {[%emt 0:00:10]} g6 {[%emt 0:00:24]} 5. O-O {[%emt 0:01:53]} Bg7 {[%emt 0:00:06]} 6. d4 {[%emt 0:02:27]} O-O {[%emt 0:00:09]} 7. d5 {[%emt 0:03:41]} Na6 {[%emt 0:00:21]} 8. Nc3 {[%emt 0:00:32]} Nc5 {[%emt 0:00:11]} 9. Re1 {[%emt 0:01:06]} e6 {[%emt 0:10:45]} 10. e4 {[%emt 0:01:51]} d6 {[%emt 0:01:46]} 11. Bg5 {[%emt 0:00:29]} h6 {[%emt 0:04:26]} 12. Bd2 {[%emt 0:02:24]} a5 {[%emt 0:02:07]} 13. Qc2 {[%emt 0:07:56]} Re8 {[%emt 0:03:38]} 14. Rad1 {[%emt 0:02:05]} exd5 {[%emt 0:16:03]} 15. cxd5 {[%emt 0:03:22]} Re7 {[%emt 0:17:14]} 16. Bf4 {[%emt 0:30:32]} Qe8 {[%emt 0:02:32]} 17. e5 {[%emt 0:01:14]} dxe5 {[%emt 0:00:29]} 18. Bxe5 {[%emt 0:00:12]} Qd7 {[%emt 0:06:36]} 19. d6 {[%emt 0:06:27]} cxd6 {[%emt 0:01:22]} 20. Bxd6 {[%emt 0:06:35]} Rxe1+ {[%emt 0:00:31]} 21. Nxe1 {[%emt 0:00:13]} Bxg2 {[%emt 0:04:33]} 22. Nxg2 {[%emt 0:03:41]} Qc6 {[%emt 0:02:09]} 23. Ne3 {[%emt 0:04:24]} Ne6 {[%emt 0:04:41]} 24. h4 {[%emt 0:06:36]} Ne8 {[%emt 0:03:41]} 25. Be7 {[%emt 0:05:13]} Nd4 {[%emt 0:08:28]} 26. Qe4 {[%emt 0:01:21]} Qxe4 {[%emt 0:00:20]} 27. Nxe4 {[%emt 0:00:09]} Ra7 {[%emt 0:03:14]} 28. Bd8 {[%emt 0:01:29]} Rb7 {[%emt 0:01:18]} 29. Kg2 {[%emt 0:02:29]} Nc6 {[%emt 0:00:39]} 30. Nc4 {[%emt 0:00:16]} Bd4 {[%emt 0:00:21]} 31. g4 {[%emt 0:02:09]} Rb8 {[%emt 0:01:05]} 32. Rxd4 {[%emt 0:02:12]} Nxd4 {[%emt 0:00:51]} 33. Bxb6 {[%emt 0:00:07]} Nc6 {[%emt 0:00:36]} 34. b3 {[%emt 0:01:58]} Ne5 {[%emt 0:00:58]} 35. Bxa5 {[%emt 0:01:06]} Nxc4 {[%emt 0:00:41]} 36. bxc4 {[%emt 0:00:06]} Ra8 {[%emt 0:01:33]} 37. Bc3 {[%emt 0:00:09]} Rxa2 {[%emt 0:00:37]} 38. g5 {[%emt 0:00:46]} Ra4 {[%emt 0:00:57]} 39. Kf3 {[%emt 0:00:56]} Rxc4 {[%emt 0:00:17]} 40. Be5 {[%emt 0:00:21]} h5 {[%emt 0:00:59]} 41. Ke3 {[%emt 0:06:12]} Kf8 {[%emt 0:00:49]} 42. Bf6 {[%emt 0:07:08]} Nc7 {[%emt 0:01:47]} 43. Kd3 {[%emt 0:01:59]} Rc1 {[%emt 0:04:05]} 44. Bb2 {[%emt 0:00:59]} Rh1 {[%emt 0:00:19]} 45. Be5 {[%emt 0:00:50]} Nd5 {[%emt 0:02:33]} 46. Bd6+ {[%emt 0:02:17]} Ke8 {[%emt 0:00:07]} 47. Bg3 {[%emt 0:00:06]} Ke7 {[%emt 0:01:47]} 48. Kd4 {[%emt 0:00:12]} Nb6 {[%emt 0:01:48]} 49. Nc5 {[%emt 0:01:12]} Nc8 {[%emt 0:01:37]} 50. Kd5 {[%emt 0:01:43]} Rd1+ {[%emt 0:00:41]} 0-1